bitfinex/quotes_ETHUSD_20241203
["timestamp","ask_amount","ask_price","bid_price","bid_amount"]
[1733253005973,1.53820944,3571.1,3571.0,0.68986927]
[1733253006213,1.81801027,3571.1,3571.0,0.68986927]
[1733253006602,1.53820944,3571.1,3571.0,0.68986927]
[1733253006811,1.53820944,3571.1,3571.0,1.48446927]
[1733253007224,1.53902033,3571.1,3571.0,1.48446927]
[1733253007990,1.53902033,3571.1,3571.0,0.68986927]
[1733253008191,2.28303134,3571.1,3571.0,0.68986927]
[1733253008498,1.28382033,3571.1,3571.0,0.68986927]
[1733253008692,1.61197778,3571.1,3571.0,0.68986927]
[1733253008919,1.61282797,3571.1,3571.0,0.68986927]
[1733253009629,1.61286653,3571.1,3571.0,0.68986927]
[1733253009834,1.33290144,3571.1,3571.0,0.68986927]
[1733253010129,1.61286653,3571.1,3571.0,0.68986927]
[1733253010564,1.33290144,3571.1,3571.0,0.68986927]
[1733253010728,0.59421334,3571.1,3571.0,0.68986927]
[1733253011039,1.27664767,3571.1,3571.0,0.68986927]
[1733253011251,1.27664767,3571.1,3571.0,1.51906927]
[1733253011552,1.27664767,3571.1,3571.0,1.9510212]
[1733253011837,1.27664767,3571.1,3571.0,1.51906927]
[1733253012539,1.27664767,3571.1,3571.0,0.68986927]
[1733253012751,1.27664767,3571.1,3569.8,0.7943]
[1733253012752,7.90686276,3571.1,3569.8,0.7943]
[1733253012898,7.90686276,3571.1,3568.9,2.80193]
[1733253012899,2.80117,3570.0,3568.9,2.80193]
[1733253013097,2.8012,3569.9,3568.9,2.80197]
[1733253013295,3.35128,3569.8,3568.7,3.55441]
[1733253013496,0.85650072,3569.7,3568.8,2.80203]
[1733253013717,0.80829499,3569.6,3568.8,2.80203]
[1733253013923,0.04826049,3569.7,3568.8,2.80203]
[1733253013924,0.80829465,3569.5,3568.8,2.80203]
[1733253014138,0.20991762,3569.4,3568.9,0.355433]
[1733253014384,0.04789242,3569.5,3568.7,0.7523]
[1733253014512,0.20981479,3569.4,3568.7,0.7523]
[1733253014717,0.20981479,3569.3,3568.9,2.80197]
[1733253014962,0.04719753,3569.2,3568.7,0.7523]
[1733253015112,0.04719753,3569.2,3568.7,3.55441]
[1733253015316,0.59793407,3569.6,3568.8,0.355441]
[1733253015560,1.40450051,3569.5,3568.8,0.355441]
[1733253015731,0.20968528,3569.4,3568.8,0.355441]
[1733253015942,0.59688116,3569.5,3568.8,0.355441]
[1733253015943,0.25656087,3569.3,3568.8,0.355441]
[1733253016147,0.25656087,3569.3,3568.8,3.157491]
[1733253016148,0.20968528,3569.2,3568.8,3.157491]
[1733253016354,0.25655447,3569.1,3568.9,0.3909791]
[1733253016660,0.04686919,3569.1,3569.0,2.80189]
[1733253016858,0.04686919,3569.1,3568.7,0.7523]
[1733253017018,1.14706269,3569.8,3569.0,2.80187]
[1733253017364,0.85339888,3569.7,3569.1,3.59819]
[1733253017547,0.80654901,3569.6,3569.2,2.8017]
[1733253017751,0.25633177,3569.5,3569.2,3.16151]
[1733253018109,0.20948632,3569.4,3569.2,0.35981]
[1733253018273,0.20948632,3569.3,3569.2,0.35981]
[1733253018570,0.04692803,3569.3,3569.1,0.7964]
[1733253018864,0.04692803,3569.3,3569.2,2.80174]
[1733253019019,0.59671023,3569.7,3569.1,0.7964]
[1733253019220,0.20937641,3569.6,3569.1,0.7964]
[1733253019543,0.20937641,3569.5,3569.3,2.80166]
[1733253019755,0.2799903,3570.3,3568.9,2.80194]
[1733253019756,0.59671023,3569.9,3569.6,2.80138]
[1733253019969,0.20935501,3569.8,3569.5,0.8131]
[1733253020265,0.59671023,3570.1,3569.6,2.80139]
[1733253020450,0.54432593,3570.0,3569.5,3.61459]
[1733253020651,0.20933012,3569.9,3569.7,2.80135]
[1733253020944,0.20933012,3569.8,3569.7,0.3974256]
[1733253021154,0.85837121,3570.2,3569.7,0.3974256]
[1733253021349,0.04548889,3570.1,3569.7,0.3974256]
[1733253021523,0.2093276,3570.0,3569.7,0.3974256]
[1733253021721,0.25481181,3569.9,3569.7,0.3974256]
[1733253021944,0.04548421,3569.9,3569.7,0.3974256]
[1733253022177,0.85837304,3570.2,3569.8,0.40119256]
[1733253022361,0.20933561,3570.1,3569.6,0.7556]
[1733253022561,0.04422312,3570.1,3570.0,2.80112]
[1733253022778,0.20934837,3570.1,3570.0,3.55672]
[1733253022984,0.85840403,3570.6,3570.1,2.80102]
[1733253023185,0.54434098,3570.5,3570.1,2.80102]
[1733253023353,0.20934517,3570.4,3570.1,2.80102]
[1733253023558,0.25369238,3570.3,3570.1,2.80102]
[1733253023754,0.20936111,3570.2,3570.1,2.80102]
[1733253023985,0.20936111,3570.2,3570.1,3.972282]
[1733253024583,0.85841303,3570.7,3570.1,1.171262]
[1733253024788,1.06778833,3570.6,3570.3,2.80086]
[1733253024996,1.06778277,3570.5,3570.1,1.171262]
[1733253025188,0.20937164,3570.4,3570.1,1.171262]
[1733253025493,0.20937164,3570.3,3570.1,1.171262]
[1733253025796,0.85841202,3570.7,3570.2,2.80096]
[1733253026098,0.27915835,3571.0,3570.2,2.80096]
[1733253026099,1.06778499,3570.6,3570.2,3.1981822]
[1733253026396,0.80607531,3570.5,3570.2,3.1981822]
[1733253026550,0.20937297,3570.4,3570.2,3.1981822]
[1733253026746,0.20937297,3570.3,3570.2,3.1981822]
[1733253028294,0.85841202,3570.8,3570.3,2.80088]
[1733253028596,1.06780464,3570.7,3570.2,0.3972222]
[1733253028796,1.06780464,3570.7,3570.1,3.972222]
[1733253028797,1.06780464,3570.6,3570.1,0.8156]
[1733253028959,0.69789807,3571.0,3570.3,2.80086]
[1733253028960,0.80609496,3570.5,3570.3,2.80086]
[1733253029159,0.80609496,3570.5,3570.1,0.8156]
[1733253029160,0.20939262,3570.4,3570.1,3.61661]
[1733253029376,6.7935213,3571.2,3570.1,3.61661]
[1733253029377,0.25399373,3570.3,3570.1,3.61661]
[1733253029577,0.20939262,3570.2,3570.1,3.61661]
[1733253030280,0.20939262,3570.2,3570.1,0.8156]
[1733253031255,0.20939262,3570.2,3570.1,3.61664]
[1733253031594,0.20939439,3570.2,3570.1,3.61664]
[1733253032393,0.20939439,3570.2,3570.1,3.978304]
[1733253033405,0.20939439,3570.2,3570.1,3.61664]
[1733253033967,0.55,3571.1,3570.3,2.80085]
[1733253034165,0.59682671,3570.7,3570.3,2.80085]
[1733253034468,1.06802231,3570.6,3570.4,2.8008]
[1733253034798,0.20941454,3570.5,3570.4,2.8008]
[1733253035094,0.20941454,3570.5,3570.4,0.36164]
[1733253035267,0.6468364,3570.5,3570.3,2.80086]
[1733253035471,0.20941454,3570.4,3570.3,2.80086]
[1733253035869,0.31175009,3570.4,3570.3,2.80086]
[1733253037095,0.31175009,3570.4,3570.1,0.8156]
[1733253037292,0.20941454,3570.3,3570.1,0.8156]
[1733253037519,0.20941454,3570.2,3570.1,3.61664]
[1733253037687,0.20941454,3570.2,3570.1,4.258427]
[1733253039139,0.85886728,3570.9,3570.3,2.80082]
[1733253039299,1.17079072,3570.8,3570.1,3.6166]
[1733253039502,1.06838219,3570.7,3570.1,3.6166]
[1733253039725,1.17078283,3570.6,3570.2,2.80094]
[1733253039942,0.41882577,3571.0,3570.2,2.80094]
[1733253039943,1.06838219,3570.5,3570.2,2.80094]
[1733253040099,0.80653229,3570.4,3570.1,0.8156]
[1733253040312,0.80653229,3570.4,3570.3,2.80088]
[1733253040313,0.10238007,3570.4,3570.3,2.80088]
[1733253040511,0.20951182,3570.4,3570.3,2.80088]
[1733253040911,0.31187423,3570.4,3570.3,2.80088]
[1733253041313,0.20951182,3570.4,3570.3,2.80088]
[1733253041645,0.64715537,3570.4,3570.3,2.80088]
[1733253041856,0.31186986,3570.4,3570.3,2.80088]
[1733253042151,0.90909946,3570.4,3570.1,3.61662]
[1733253042306,0.20951182,3570.3,3570.1,3.61662]
[1733253042506,3.07957718,3571.0,3570.1,0.8156]
[1733253042507,0.31187278,3570.2,3570.1,0.8156]
[1733253042803,0.20951182,3570.2,3570.1,0.8156]
[1733253043118,0.47150448,3570.2,3569.8,3.57495]
[1733253043301,1.06884706,3570.1,3569.7,2.80135]
[1733253043504,0.80683778,3570.0,3569.8,2.80122]
[1733253043733,0.41882577,3570.5,3569.9,2.80119]
[1733253043914,1.48773948,3570.4,3569.7,2.80129]
[1733253044116,1.06891371,3570.3,3569.7,2.80129]
[1733253044338,1.06891371,3570.2,3569.8,2.80124]
[1733253044543,1.06891371,3570.1,3569.8,2.80124]
[1733253044747,1.06891371,3570.0,3569.8,2.80124]
[1733253045051,0.31170799,3569.9,3569.8,2.80124]
[1733253045236,0.31170799,3569.9,3569.6,0.7737]
[1733253045436,0.27921718,3570.6,3568.9,2.80192]
[1733253045437,0.20959158,3569.8,3569.7,2.80133]
[1733253045611,0.31170727,3569.8,3569.7,3.63203]
[1733253045814,0.20959158,3569.8,3569.7,3.63203]
[1733253046048,0.85946409,3570.3,3569.7,3.63203]
[1733253046249,1.06917535,3570.2,3569.8,2.80127]
[1733253046457,0.80714684,3570.1,3569.8,2.80127]
[1733253046611,0.20971126,3570.0,3569.8,2.80127]
[1733253046806,0.20971126,3569.9,3569.8,2.80127]
[1733253047422,0.31182767,3569.9,3569.8,2.80127]
[1733253047732,0.20971126,3569.9,3569.8,2.80127]
[1733253047947,0.31182767,3569.9,3569.8,2.80127]
[1733253048757,0.20971126,3569.9,3569.8,2.80127]
[1733253053428,0.80829078,3569.9,3569.8,2.80127]
[1733253053756,0.30840036,3569.9,3569.8,2.80127]
[1733253053970,0.20971126,3569.9,3569.8,2.80127]
[1733253055236,0.20971126,3569.9,3569.8,3.444612]
[1733253055555,0.20971126,3569.9,3569.8,4.22592133]
[1733253055755,0.27921718,3570.9,3570.7,2.80057]
[1733253055957,1.3798737,3570.8,3570.7,2.80057]
[1733253056142,1.58991185,3570.8,3570.7,2.80057]
[1733253056666,1.5897429,3570.8,3570.7,2.80057]
[1733253056830,1.58963841,3570.8,3570.7,2.80057]
[1733253057831,1.16964013,3570.8,3570.7,2.80057]
[1733253058367,1.58963841,3570.8,3570.7,2.80057]
[1733253058665,1.16964013,3570.8,3570.7,2.80057]
[1733253060236,1.16921661,3570.8,3570.7,2.80057]
[1733253061936,1.16921661,3570.8,3570.7,3.62457]
[1733253062136,0.90671769,3570.8,3570.7,4.26990038]
[1733253062339,0.20983507,3570.8,3570.7,4.26990038]
[1733253062778,0.27978009,3571.8,3570.7,1.46933038]
[1733253063034,1.16227269,3571.7,3570.8,0.8137]
[1733253063274,1.16227269,3571.7,3571.5,2.79994]
[1733253063275,1.0698292,3571.6,3571.5,2.79994]
[1733253063486,1.0698292,3571.6,3571.0,0.8137]
[1733253063693,1.0698292,3571.6,3570.7,0.8137]
[1733253063694,1.0698292,3571.5,3570.7,0.8137]
[1733253063840,1.0698292,3571.4,3570.8,2.80047]
[1733253064184,1.0698292,3571.3,3570.9,2.8004]
[1733253064488,1.16238025,3571.2,3570.9,2.8004]
[1733253064687,1.0698292,3571.1,3570.9,2.8004]
[1733253064844,0.20977034,3571.0,3570.9,2.8004]
[1733253065047,0.30233135,3571.0,3570.9,2.8004]
[1733253065642,0.20977034,3571.0,3570.9,2.8004]
[1733253066646,0.20977034,3571.0,3570.9,4.22856693]
[1733253066942,0.85911778,3571.7,3571.6,2.79986]
[1733253067142,0.89924041,3571.7,3571.6,2.79986]
[1733253067379,0.30208234,3571.7,3571.6,2.79986]
[1733253067677,0.30208234,3571.7,3571.5,3.58097]
[1733253067888,0.42779971,3571.7,3571.6,2.79986]
[1733253068198,0.63719431,3571.7,3571.5,0.7811]
[1733253068353,0.2094616,3571.6,3571.5,0.7811]
[1733253068558,0.2094616,3571.6,3571.5,3.58104]
[1733253070189,0.85892649,3572.0,3571.5,3.58104]
[1733253070362,0.09259669,3571.9,3571.7,2.79978]
[1733253070563,4.17218238,3572.8,3571.9,0.8031]
[1733253070875,0.0927903,3572.7,3571.9,0.8031]
[1733253071257,1.17218238,3573.1,3571.9,0.8031]
[1733253071457,0.08671326,3572.6,3572.4,2.79922]
[1733253071657,2.82934473,3573.2,3572.4,2.79922]
[1733253071887,0.08671201,3572.5,3572.4,2.79922]
[1733253072048,1.17218238,3573.3,3572.4,2.79922]
[1733253072389,0.08797318,3573.2,3572.5,2.7991]
[1733253072543,0.55,3573.1,3572.1,2.79942]
[1733253072747,6.17826473,3572.9,3571.9,2.79959]
[1733253072987,6.17826473,3572.9,3571.6,3.8072]
[1733253072988,0.08797901,3572.8,3571.6,3.8072]
[1733253073187,0.08797901,3572.8,3571.6,0.8072]
[1733253073188,1.09330684,3572.7,3571.6,0.8072]
[1733253073392,0.55,3572.5,3571.7,2.79976]
[1733253073545,0.55,3572.3,3572.0,2.79953]
[1733253073896,0.55,3572.3,3571.6,0.8072]
[1733253073897,0.29694209,3572.2,3571.6,3.60704]
[1733253074044,0.20896417,3572.1,3571.0,0.8072]
[1733253074248,3.00851417,3572.0,3571.1,3.0]
[1733253074507,0.55,3571.7,3570.1,2.82934473]
[1733253074690,0.55,3571.9,3570.7,0.8098]
[1733253074888,0.08763566,3571.6,3571.0,2.80026]
[1733253075104,0.20881542,3571.8,3571.1,2.80023]
[1733253075105,0.75881542,3571.7,3571.1,2.80023]
[1733253075298,0.08763494,3571.5,3571.1,2.80023]
[1733253075501,0.08750904,3571.6,3570.9,2.80038]
[1733253075735,0.08750759,3571.4,3570.7,0.8098]
[1733253075915,0.08750759,3571.4,3569.8,3.47268673]
[1733253075916,0.55,3571.4,3570.0,2.80112]
[1733253076121,0.08737149,3571.3,3570.3,2.80088]
[1733253076418,0.55,3571.5,3570.8,2.80045]
[1733253076776,0.08715388,3571.4,3570.8,2.80045]
[1733253076988,0.55,3571.6,3570.8,2.80045]
[1733253077196,0.55,3571.8,3570.8,2.80045]
[1733253077197,0.55,3571.4,3570.8,2.80045]
[1733253077405,0.29592447,3571.3,3570.4,2.80073]
[1733253077616,0.20885299,3571.2,3570.4,2.80073]
[1733253077818,0.75885299,3571.1,3570.2,3.61994]
[1733253078123,0.20884459,3571.0,3570.2,3.61994]
[1733253078333,0.63707812,3571.1,3570.0,2.8011]
[1733253078334,3.43733812,3571.1,3570.0,2.8011]
[1733253078620,3.43733812,3571.1,3570.1,2.80098]
[1733253078621,0.55,3570.8,3570.1,2.80098]
[1733253079123,0.55,3570.9,3570.1,2.80098]
[1733253079324,0.08665538,3570.7,3570.1,2.80098]
[1733253079627,0.08665465,3570.6,3570.1,2.80098]
[1733253080136,0.20897503,3570.8,3570.1,2.80098]
[1733253080330,0.08665392,3570.5,3570.1,2.80102]
[1733253080689,0.20900776,3570.7,3570.1,2.80102]
[1733253080882,0.55,3570.9,3570.1,2.80102]
[1733253080883,0.08665592,3570.4,3570.1,2.80102]
[1733253081192,0.08665519,3570.3,3569.9,0.7656]
[1733253081511,0.08665519,3570.3,3570.1,2.801]
[1733253081725,0.20899439,3570.6,3570.1,2.801]
[1733253081885,0.88420615,3571.0,3570.1,2.801]
[1733253082103,0.08665665,3570.5,3570.1,2.801]
[1733253082317,0.20902834,3570.7,3570.1,2.801]
[1733253082513,0.08665592,3570.4,3570.1,2.801]
[1733253082801,0.08665519,3570.3,3570.1,2.801]
[1733253083036,0.20906099,3570.8,3570.1,2.801]
[1733253083355,0.20906099,3570.7,3570.1,2.801]
[1733253083500,0.0866581,3570.7,3570.1,2.801]
[1733253084014,0.29575492,3570.6,3569.5,2.8015]
[1733253084214,0.20909755,3570.5,3569.6,1.39315]
[1733253084419,0.08665737,3570.6,3570.1,2.80104]
[1733253084615,0.20911371,3570.5,3570.1,2.80104]
[1733253084800,0.55,3570.7,3570.1,2.80097]
[1733253085139,0.29573003,3570.6,3570.1,2.80097]
[1733253085307,0.20912072,3570.5,3570.2,2.80096]
[1733253085503,0.08660931,3570.6,3570.2,2.80096]
[1733253085840,0.20914269,3570.5,3570.2,2.80096]
[1733253086031,1.40693313,3570.9,3570.2,2.80096]
[1733253086205,0.08489332,3570.4,3570.2,2.80096]
[1733253086405,0.55,3570.7,3570.2,2.80096]
[1733253086606,0.29403109,3570.6,3570.2,2.80096]
[1733253086829,0.20913632,3570.5,3570.2,2.80091]
[1733253087032,0.08489477,3570.6,3570.4,2.8008]
[1733253087236,0.08489477,3570.6,3570.0,2.80112]
[1733253087237,0.85693313,3571.3,3570.2,0.7602]
[1733253087404,1.61606713,3571.2,3570.4,2.80075]
[1733253087605,0.55,3571.0,3570.2,0.7602]
[1733253087833,0.209134,3570.9,3570.5,2.80071]
[1733253088036,0.88420615,3571.0,3570.5,2.80071]
[1733253088037,0.209134,3570.8,3570.5,2.80071]
[1733253088325,0.55,3571.0,3570.5,2.80071]
[1733253088326,0.209134,3570.7,3570.5,2.80071]
[1733253088533,2.82934473,3571.3,3570.2,0.7602]
[1733253088534,0.85693313,3571.1,3570.2,3.56112]
[1733253088854,3.97190238,3571.8,3570.8,2.80047]
[1733253088855,0.20913829,3571.0,3570.8,2.80047]
[1733253089008,0.20913829,3570.9,3570.8,2.80047]
[1733253089643,0.20913829,3570.9,3570.2,0.7602]
[1733253089853,3.0,3571.6,3570.2,0.7602]
[1733253089854,0.20913829,3570.8,3570.5,2.80071]
[1733253090006,2.82934473,3571.4,3570.2,0.7602]
[1733253090007,0.20913829,3570.7,3570.6,2.80064]
[1733253090203,0.29137702,3570.7,3570.6,2.80064]
[1733253090422,0.08223873,3570.7,3570.6,2.80064]
[1733253090646,0.29139335,3570.7,3570.6,2.80064]
[1733253090853,0.08223873,3570.7,3570.6,3.360792]
[1733253091051,0.27845647,3571.6,3570.6,3.360792]
[1733253091052,0.8570128,3571.2,3570.6,3.360792]
[1733253091251,0.8570128,3571.5,3571.1,2.80025]
[1733253091422,0.08237042,3571.1,3571.0,2.80033]
[1733253091744,0.20917124,3571.1,3571.0,2.80033]
[1733253091945,0.8570128,3571.7,3571.5,2.7999]
[1733253092108,0.20918567,3571.6,3571.5,2.7999]
[1733253092311,0.29155973,3571.6,3571.5,2.7999]
[1733253093215,0.20918567,3571.6,3571.5,2.7999]
[1733253096219,0.5231366,3572.3,3572.0,2.79955]
[1733253096426,1.06709432,3572.2,3572.1,2.79947]
[1733253096754,1.06709432,3572.2,3572.1,3.57017]
[1733253096755,0.29200133,3572.2,3572.1,3.57017]
[1733253097252,0.20921451,3572.2,3572.1,4.207153]
[1733253100011,0.20921451,3572.2,3572.1,3.436453]
[1733253100246,0.20921451,3572.2,3572.1,2.79947]
[1733253101255,0.2615683,3572.9,3572.1,2.79947]
[1733253101256,0.20921451,3572.6,3572.4,2.79919]
[1733253101560,0.20921451,3572.5,3572.4,2.79919]
[1733253102964,0.54395772,3572.5,3572.4,2.79919]
[1733253103110,0.20921451,3572.5,3572.4,2.79919]
[1733253103551,0.54395772,3572.5,3572.4,2.79919]
[1733253103754,0.20921451,3572.5,3572.4,2.79919]
[1733253103921,0.20921451,3572.5,3572.4,3.857009]
[1733253104115,0.20921451,3572.5,3572.4,6.88499629]
[1733253104315,0.33474321,3573.3,3573.2,2.79861]
[1733253104527,0.20893333,3573.3,3573.2,2.79861]
[1733253104728,0.29280421,3573.3,3573.2,2.79861]
[1733253104956,0.20893333,3573.3,3573.2,2.79861]
[1733253105369,0.29280421,3573.3,3573.2,2.79861]
[1733253105743,0.29280421,3573.3,3573.0,2.79873]
[1733253106070,0.29280421,3573.3,3572.4,3.279919]
[1733253106071,0.55,3573.1,3572.4,2.79922]
[1733253106227,0.20893333,3573.0,3572.4,2.79922]
[1733253106437,0.20893333,3573.0,3572.1,0.814]
[1733253106438,0.20893333,3572.9,3572.3,2.79924]
[1733253106750,0.29366458,3573.0,3572.1,0.814]
[1733253106942,0.08472979,3572.8,3572.2,2.79937]
[1733253107144,0.20893333,3572.7,3572.3,2.7993]
[1733253107344,0.20893333,3572.6,3572.3,2.7993]
[1733253107869,0.20893333,3572.6,3572.3,2.79924]
[1733253108068,0.20893333,3573.0,3572.3,2.79924]
[1733253108303,0.3704455,3572.9,3572.3,2.79924]
[1733253108430,0.20893333,3572.8,3572.3,2.79924]
[1733253108634,0.24624269,3572.9,3572.3,2.79924]
[1733253108635,0.20893333,3572.7,3572.3,2.79924]
[1733253108829,0.20893333,3572.6,3572.3,2.79924]
[1733253109343,0.20893333,3572.8,3572.3,2.79924]
[1733253109547,0.20893333,3572.7,3572.3,2.79924]
[1733253109853,0.08472907,3572.7,3572.3,2.79924]
[1733253110057,0.2936624,3572.7,3572.3,2.79924]
[1733253110231,0.20893333,3572.8,3572.3,2.79924]
[1733253110432,0.08472781,3572.6,3572.3,2.79924]
[1733253110675,0.08472853,3572.7,3572.1,3.814]
[1733253110876,0.08472708,3572.5,3572.4,2.79923]
[1733253111173,0.20893333,3572.8,3572.4,2.79923]
[1733253111369,0.55,3573.1,3572.1,3.814]
[1733253111370,0.20893333,3572.7,3572.5,2.82712979]
[1733253111671,0.55,3573.1,3572.6,2.79908]
[1733253111968,0.20871966,3573.0,3572.6,2.79908]
[1733253112200,0.20871966,3573.0,3572.1,0.814]
[1733253112201,0.20871966,3572.9,3572.1,0.814]
[1733253112418,0.08445152,3573.0,3572.8,2.79884]
[1733253112561,0.20875187,3572.9,3572.8,3.62204]
[1733253112883,0.80014065,3573.8,3572.8,3.62204]
[1733253112884,0.20875187,3573.4,3573.1,2.79867]
[1733253113058,0.20875187,3573.3,3572.8,0.85118354]
[1733253113256,0.20875187,3573.2,3573.1,2.79869]
[1733253113672,0.54270333,3573.8,3573.2,2.79854]
[1733253113962,0.52184777,3574.0,3573.3,2.79851]
[1733253113963,0.20875187,3573.7,3573.3,2.79851]
[1733253114282,0.20875187,3573.6,3573.3,2.79851]
[1733253114474,0.20875187,3573.5,3573.3,2.79851]
[1733253114674,0.20875187,3573.4,3573.3,2.79853]
[1733253115214,0.084516,3573.4,3573.3,3.58203]
[1733253115364,0.29330058,3573.4,3573.3,3.58203]
[1733253115711,0.20878458,3573.8,3573.3,3.58203]
[1733253115878,0.20878458,3573.7,3573.3,3.58203]
[1733253116065,0.20878458,3573.6,3573.3,3.58203]
[1733253116265,0.20878458,3573.5,3573.4,2.79843]
[1733253116511,0.29330079,3573.5,3573.4,2.79843]
[1733253117309,0.29330079,3573.5,3573.3,0.7835]
[1733253117597,0.20878458,3573.4,3573.3,0.7835]
[1733253117900,0.29330006,3573.4,3573.3,0.7835]
[1733253118489,0.29330006,3573.4,3573.3,3.58198]
[1733253118887,0.20889065,3573.4,3573.3,3.58198]
[1733253119059,0.29347963,3573.4,3573.3,3.58198]
[1733253119486,0.20889065,3573.4,3573.3,3.58198]
[1733253119694,0.29347963,3573.4,3573.3,3.58198]
[1733253120076,0.20889065,3573.4,3573.3,3.58198]
[1733253120598,0.20889065,3573.4,3572.3,0.794]
[1733253120822,0.54311569,3573.3,3572.5,2.79913]
[1733253121106,1.61504959,3573.2,3572.1,2.79944]
[1733253121276,1.06610158,3573.1,3572.1,2.79944]
[1733253121480,1.06610158,3573.0,3572.2,2.79934]
[1733253121675,1.06610158,3572.9,3572.2,2.79934]
[1733253121915,1.06610158,3572.8,3572.0,0.794]
[1733253122209,0.80469871,3572.7,3572.1,2.79947]
[1733253122366,0.80469871,3572.6,3572.3,2.7993]
[1733253122571,0.54371798,3572.5,3572.3,2.7993]
[1733253122779,0.2091223,3572.4,3572.3,2.7993]
[1733253122991,0.29360093,3572.4,3572.0,0.794]
[1733253123192,0.2091223,3572.3,3572.0,0.794]
[1733253123510,0.33459568,3572.5,3572.2,2.79939]
[1733253123666,0.27882973,3573.1,3572.2,2.79939]
[1733253123667,0.20924487,3572.4,3572.2,2.79939]
[1733253123867,0.20924487,3572.3,3572.2,2.79939]
[1733253124818,0.20924487,3572.3,3572.0,1.08046263]
[1733253125124,0.20924487,3572.2,3572.0,0.794]
[1733253125327,0.20934163,3572.1,3571.5,0.7744]
[1733253125492,0.20934163,3572.0,3571.7,2.79971]
[1733253125833,0.29355119,3572.0,3571.8,2.79963]
[1733253126022,0.20934163,3571.9,3571.8,2.79963]
[1733253126323,0.20934163,3571.9,3571.8,3.437022]
[1733253126681,0.5223836,3572.6,3572.1,2.79947]
[1733253126879,1.06657328,3572.5,3571.9,2.7996]
[1733253127135,1.06657328,3572.4,3572.0,2.79954]
[1733253127336,1.06657328,3572.3,3571.7,0.02799245]
[1733253127639,0.5223836,3572.3,3572.2,2.79939]
[1733253127801,0.5442307,3572.3,3572.2,2.79939]
[1733253128000,0.62836364,3572.3,3572.2,2.79939]
[1733253128338,0.20931813,3572.3,3572.2,3.442566]
[1733253132001,0.20938773,3572.3,3572.2,3.442566]
[1733253132799,0.20938773,3572.3,3572.0,2.79952]
[1733253133005,0.54441223,3572.2,3572.0,2.79952]
[1733253133226,0.20938773,3572.1,3572.0,2.79952]
[1733253134500,0.20938773,3572.1,3572.0,3.56922]
[1733253134710,0.26175381,3572.9,3572.6,2.79903]
[1733253134911,1.17218238,3573.5,3572.6,2.79903]
[1733253134912,1.06797789,3572.8,3572.6,2.79903]
[1733253135152,1.06797789,3572.7,3572.6,2.79903]
[1733253135519,0.5445087,3572.7,3572.6,2.79903]
[1733253136050,0.80629874,3572.7,3572.6,3.55703]
[1733253136250,0.20942642,3572.7,3572.6,3.836933]
[1733253136450,0.20942642,3572.7,3572.6,6.836933]
[1733253137063,0.59690392,3573.2,3573.1,2.79869]
[1733253137224,0.85868091,3573.7,3573.6,2.79829]
[1733253137552,0.94319438,3573.7,3573.6,2.79829]
[1733253138121,0.94319438,3573.7,3573.6,3.57439]
[1733253138450,0.08451347,3573.7,3573.6,3.57439]
[1733253138662,0.26174931,3574.3,3573.6,1.413391]
[1733253138832,0.85851312,3574.2,3573.8,2.79812]
[1733253139029,0.85851312,3574.1,3573.8,2.79812]
[1733253139235,0.85851312,3574.0,3573.8,2.79812]
[1733253139525,0.41939341,3573.9,3573.6,0.637291]
[1733253139724,0.85825943,3574.4,3573.8,2.79813]
[1733253140036,0.9427661,3574.3,3573.7,2.79821]
[1733253140240,0.85825943,3574.2,3573.7,2.79821]
[1733253140565,0.94276621,3574.1,3573.4,3.7761]
[1733253140870,0.33488964,3574.0,3573.7,2.79821]
[1733253141013,0.41939569,3574.0,3573.7,2.79821]
[1733253141217,0.85825943,3574.3,3573.7,2.79821]
[1733253141550,0.27923523,3574.6,3573.5,0.657462]
[1733253141551,0.94304603,3574.2,3573.5,0.657462]
[1733253141762,0.33488964,3574.1,3573.8,2.79809]
[1733253141918,0.0847866,3574.2,3573.8,2.79809]
[1733253142262,0.27923523,3574.7,3573.8,2.79809]
[1733253142263,0.08403212,3574.1,3573.8,2.79809]
[1733253142463,0.33488964,3574.2,3573.8,2.79809]
[1733253142615,1.14662988,3574.5,3573.5,0.657462]
[1733253142816,0.94229373,3574.4,3573.8,2.79809]
[1733253143051,0.59651919,3574.3,3573.8,2.79809]
[1733253143373,0.08403284,3574.2,3573.8,2.79809]
[1733253143719,0.85825943,3574.4,3573.8,2.79809]
[1733253144021,0.33488964,3574.3,3573.8,2.79809]
[1733253144216,0.08403284,3574.2,3573.9,2.79803]
[1733253144544,0.08403284,3574.2,3574.1,2.7979]
[1733253144857,0.27923523,3575.0,3574.1,2.7979]
[1733253144858,0.55,3574.8,3574.1,2.7979]
[1733253145059,0.94234824,3574.7,3574.1,2.82587743]
[1733253145214,0.08408881,3574.7,3574.2,2.7978]
[1733253145551,0.33488964,3574.6,3574.3,2.79773]
[1733253145725,0.0847626,3574.6,3574.3,2.79773]
[1733253145936,0.0847626,3574.6,3574.3,2.79771]
[1733253146135,0.59533479,3574.7,3574.0,3.57934]
[1733253146344,0.59533479,3574.8,3574.4,2.79765]
[1733253146643,0.85644654,3574.9,3574.3,2.79773]
[1733253146848,0.59533479,3574.8,3574.3,2.79773]
[1733253147055,0.08063048,3574.8,3574.3,2.79773]
[1733253147257,0.33422304,3574.9,3574.3,2.79773]
[1733253147418,0.85644654,3575.0,3574.3,2.79773]
[1733253147621,0.08063148,3574.9,3574.3,2.79773]
[1733253148066,0.85622145,3575.1,3574.3,2.79773]
[1733253148272,0.08065695,3574.8,3574.3,2.79773]
[1733253148771,3.3923097,3575.0,3574.0,3.57931]
[1733253148967,0.08065703,3574.7,3574.0,3.57931]
[1733253149141,0.20869814,3574.6,3574.0,3.57931]
[1733253149330,0.20869814,3574.5,3574.0,3.57931]
[1733253149544,0.28927369,3574.5,3574.0,3.57931]
[1733253149742,0.08062415,3574.5,3574.1,2.79789]
[1733253149947,0.20864954,3574.4,3573.6,1.5045962]
[1733253150146,0.20864954,3574.4,3573.6,3.7814]
[1733253150147,0.08062289,3574.4,3573.6,3.7814]
[1733253150347,0.75864954,3574.7,3573.9,2.79801]
[1733253150643,0.20864954,3574.6,3573.9,2.79801]
[1733253150860,0.55,3574.7,3573.7,2.79822]